Workbook

Sheet Sheet1
A2: Nice curves | E2: Brought to you by | F2: Excel Made Easy
A4: Display the formulas you wish to see. | N4: examples | O4: BEWARE: trigonometric functions
A5: horizontal axis left | B5: left side | C5: -38.14697266 | N5: (select, copy and paste them) | O5: are in degrees to convert from radian *180/Pi()
A6: horizontal axis right | C6: 38.14697266
N7: sin(x)/x | O7: sin(x*180/pi())/x
A8: Column1 | B8: X | C8: Y | N8: sin(x)/abs(x) | O8: sin(x*180/pi())/abs(x)
A9: 1 | B9: =Hleft+(Hright-Hleft)/200*(A9-1) -> -38.14697266 | C9: =SIN(x)/x -> 0.01135183963 | D9: enter formula here | N9: x*sin(1/x) | O9: x*sin(1/(x*180/pi()))
A10: 2 | B10: -37.76550293 | C10: 0.001756691143 | D10: put the sign = before | N10: sin(x-1)/(x-1) | O10: sin(x*180/pi()-1)/(x-1)
A11: 3 | B11: -37.3840332 | C11: -0.008289400963 | N11: (1-sin(x))/(cos(x)*cos(x)) | O11: (1-sin(x*180/pi()))/(cos(x*180/pi())*cos(x*180/pi()))
A12: 4 | B12: -37.00256348 | C12: -0.01733863386 | N12: x/abs(x)
A13: 5 | B13: -36.62109375 | C13: -0.02405777262 | N13: log(x)/x
A14: 6 | B14: -36.23962402 | C14: -0.02742334194 | N14: x^2+4*x-5
A15: 7 | B15: -35.8581543 | C15: -0.02687611508 | N15: x^3-4*x^2-24*x-12
A16: 8 | B16: -35.47668457 | C16: -0.02241178181
A17: 9 | B17: -35.09521484 | C17: -0.01459339039
A18: 10 | B18: -34.71374512 | C18: -0.004482121222
A19: 11 | B19: -34.33227539 | C19: 0.006505365772
A20: 12 | B20: -33.95080566 | C20: 0.01679402323
A21: 13 | B21: -33.56933594 | C21: 0.0248747181
A22: 14 | B22: -33.18786621 | C22: 0.02952400684
A23: 15 | B23: -32.80639648 | C23: 0.02998760347
A24: 16 | B24: -32.42492676 | C24: 0.02610028035
A25: 17 | B25: -32.04345703 | C25: 0.01832347662
A26: 18 | B26: -31.6619873 | C26: 0.007693303556
A27: 19 | B27: -31.28051758 | C27: -0.004315642675
A28: 20 | B28: -30.89904785 | C28: -0.01599301657
A29: 21 | B29: -30.51757813 | C29: -0.0256343801
A30: 22 | B30: -30.1361084 | C30: -0.03178790337
A31: 23 | B31: -29.75463867 | C31: -0.03347069494
A32: 24 | B32: -29.37316895 | C32: -0.03032285506
A33: 25 | B33: -28.99169922 | C33: -0.02267551224
A34: 26 | B34: -28.61022949 | C34: -0.01152087442
A35: 27 | B35: -28.22875977 | C35: 0.001613898112
A36: 28 | B36: -27.84729004 | C36: 0.01487333019
A37: 29 | B37: -27.46582031 | C37: 0.02633314698
A38: 30 | B38: -27.08435059 | C38: 0.03427672213
A39: 31 | B39: -26.70288086 | C39: 0.03744913478
A40: 32 | B40: -26.32141113 | C40: 0.03525167394
A41: 33 | B41: =Hleft+(Hright-Hleft)/200*(A41-1) -> -25.93994141 | C41: =SIN(x)/x -> 0.0278471664
A42: 34 | B42: -25.55847168 | C42: 0.01615848342
A43: 35 | B43: -25.17700195 | C43: 0.001757408396
A44: 36 | B44: -24.79553223 | C44: -0.01334331393
A45: 37 | B45: -24.4140625 | C45: -0.02696768542
A46: 38 | B46: -24.03259277 | C46: -0.03708608128
A47: 39 | B47: -23.65112305 | C47: -0.04211327563
A48: 40 | B48: -23.26965332 | C48: -0.04115171223
A49: 41 | B49: -22.88818359 | C49: -0.03414339998
A50: 42 | B50: -22.50671387 | C50: -0.021905763
A51: 43 | B51: -22.12524414 | C51: -0.006042602282
A52: 44 | B52: -21.74377441 | C52: 0.01126110383
A53: 45 | B53: -21.36230469 | C53: 0.02753495947
A54: 46 | B54: -20.98083496 | C54: 0.04037010937
A55: 47 | B55: -20.59936523 | C55: 0.04776942916
A56: 48 | B56: -20.21789551 | C56: 0.04845091525
A57: 49 | B57: -19.83642578 | C57: 0.0420592106
A58: 50 | B58: -19.45495605 | C58: 0.029251731
A59: 51 | B59: -19.07348633 | C59: 0.01164252814
A60: 52 | B60: -18.6920166 | C60: -0.008393341373
A61: 53 | B61: -18.31054688 | C61: -0.02803224794
A62: 54 | B62: -17.92907715 | C62: -0.04439110684
A63: 55 | B63: -17.54760742 | C63: -0.05494068531
A64: 56 | B64: -17.1661377 | C64: -0.05788517323
A65: 57 | B65: -16.78466797 | C65: -0.05245262252
A66: 58 | B66: -16.40319824 | C66: -0.03905128044
A67: 59 | B67: -16.02172852 | C67: -0.01926397873
A68: 60 | B68: -15.64025879 | C68: 0.004325552831
A69: 61 | B69: -15.25878906 | C69: 0.02845715999
A70: 62 | B70: -14.87731934 | C70: 0.04963029801
A71: 63 | B71: -14.49584961 | C71: 0.06459504608
A72: 64 | B72: -14.11437988 | C72: 0.07083133616
A73: 65 | B73: =Hleft+(Hright-Hleft)/200*(A73-1) -> -13.73291016 | C73: =SIN(x)/x -> 0.06694829963
A74: 66 | B74: -13.35144043 | C74: 0.0529436932
A75: 67 | B75: -12.9699707 | C75: 0.0302800771
A76: 68 | B76: -12.58850098 | C76: 0.001757838831
A77: 69 | B77: -12.20703125 | C77: -0.02880764884
A78: 70 | B78: -11.82556152 | C78: -0.05707003238
A79: 71 | B79: -11.4440918 | C79: -0.07873852823
A80: 72 | B80: -11.06262207 | C80: -0.09019137895
A81: 73 | B81: -10.68115234 | C81: -0.08903302572
A82: 74 | B82: -10.29968262 | C82: -0.0745151489
A83: 75 | B83: -9.918212891 | C83: -0.04775596799
A84: 76 | B84: -9.536743164 | C84: -0.01171588785
A85: 77 | B85: -9.155273438 | C85: 0.02908202357
A86: 78 | B86: -8.773803711 | C86: 0.06906488028
A87: 79 | B87: -8.392333984 | C87: 0.102302248
A88: 80 | B88: -8.010864258 | C88: 0.1232974506
A89: 81 | B89: -7.629394531 | C89: 0.1277802767
A90: 82 | B90: -7.247924805 | C90: 0.113398052
A91: 83 | B91: -6.866455078 | C91: 0.08020966239
A92: 84 | B92: -6.484985352 | C92: 0.03090726663
A93: 85 | B93: -6.103515625 | C93: -0.02927895881
A94: 86 | B94: -5.722045898 | C94: -0.09300016676
A95: 87 | B95: -5.340576172 | C95: -0.1514994189
A96: 88 | B96: -4.959106445 | C96: -0.1955431534
A97: 89 | B97: -4.577636719 | C97: -0.2164729761
A98: 90 | B98: -4.196166992 | C98: -0.2072582437
A99: 91 | B99: -3.814697266 | C99: -0.1634248825
A100: 92 | B100: -3.433227539 | C100: -0.08374582167
A101: 93 | B101: -3.051757812 | C101: 0.02939750236
A102: 94 | B102: -2.670288086 | C102: 0.1700374627
A103: 95 | B103: -2.288818359 | C103: 0.3290381239
A104: 96 | B104: -1.907348633 | C104: 0.4948748254
A105: 97 | B105: =Hleft+(Hright-Hleft)/200*(A105-1) -> -1.525878906 | C105: =SIN(x)/x -> 0.6546989923
A106: 98 | B106: -1.14440918 | C106: 0.7955772491
A107: 99 | B107: -0.7629394531 | C107: 0.9057718596
A108: 100 | B108: -0.3814697266 | C108: 0.975922663
A109: 101 | B109: 0
A110: 102 | B110: 0.3814697266 | C110: 0.975922663
A111: 103 | B111: 0.7629394531 | C111: 0.9057718596
A112: 104 | B112: 1.14440918 | C112: 0.7955772491
A113: 105 | B113: 1.525878906 | C113: 0.6546989923
A114: 106 | B114: 1.907348633 | C114: 0.4948748254
A115: 107 | B115: 2.288818359 | C115: 0.3290381239
A116: 108 | B116: 2.670288086 | C116: 0.1700374627
A117: 109 | B117: 3.051757812 | C117: 0.02939750236
A118: 110 | B118: 3.433227539 | C118: -0.08374582167
A119: 111 | B119: 3.814697266 | C119: -0.1634248825
A120: 112 | B120: 4.196166992 | C120: -0.2072582437
A121: 113 | B121: 4.577636719 | C121: -0.2164729761
A122: 114 | B122: 4.959106445 | C122: -0.1955431534
A123: 115 | B123: 5.340576172 | C123: -0.1514994189
A124: 116 | B124: 5.722045898 | C124: -0.09300016676
A125: 117 | B125: 6.103515625 | C125: -0.02927895881
A126: 118 | B126: 6.484985352 | C126: 0.03090726663
A127: 119 | B127: 6.866455078 | C127: 0.08020966239
A128: 120 | B128: 7.247924805 | C128: 0.113398052
A129: 121 | B129: 7.629394531 | C129: 0.1277802767
A130: 122 | B130: 8.010864258 | C130: 0.1232974506
A131: 123 | B131: 8.392333984 | C131: 0.102302248
A132: 124 | B132: 8.773803711 | C132: 0.06906488028
A133: 125 | B133: 9.155273438 | C133: 0.02908202357
A134: 126 | B134: 9.536743164 | C134: -0.01171588785
A135: 127 | B135: 9.918212891 | C135: -0.04775596799
A136: 128 | B136: 10.29968262 | C136: -0.0745151489
A137: 129 | B137: =Hleft+(Hright-Hleft)/200*(A137-1) -> 10.68115234 | C137: =SIN(x)/x -> -0.08903302572
A138: 130 | B138: 11.06262207 | C138: -0.09019137895
A139: 131 | B139: 11.4440918 | C139: -0.07873852823
A140: 132 | B140: 11.82556152 | C140: -0.05707003238
A141: 133 | B141: 12.20703125 | C141: -0.02880764884
A142: 134 | B142: 12.58850098 | C142: 0.001757838831
A143: 135 | B143: 12.9699707 | C143: 0.0302800771
A144: 136 | B144: 13.35144043 | C144: 0.0529436932
A145: 137 | B145: 13.73291016 | C145: 0.06694829963
A146: 138 | B146: 14.11437988 | C146: 0.07083133616
A147: 139 | B147: 14.49584961 | C147: 0.06459504608
A148: 140 | B148: 14.87731934 | C148: 0.04963029801
A149: 141 | B149: 15.25878906 | C149: 0.02845715999
A150: 142 | B150: 15.64025879 | C150: 0.004325552831
A151: 143 | B151: 16.02172852 | C151: -0.01926397873
A152: 144 | B152: 16.40319824 | C152: -0.03905128044
A153: 145 | B153: 16.78466797 | C153: -0.05245262252
A154: 146 | B154: 17.1661377 | C154: -0.05788517323
A155: 147 | B155: 17.54760742 | C155: -0.05494068531
A156: 148 | B156: 17.92907715 | C156: -0.04439110684
A157: 149 | B157: 18.31054688 | C157: -0.02803224794
A158: 150 | B158: 18.6920166 | C158: -0.008393341373
A159: 151 | B159: 19.07348633 | C159: 0.01164252814
A160: 152 | B160: 19.45495605 | C160: 0.029251731
A161: 153 | B161: 19.83642578 | C161: 0.0420592106
A162: 154 | B162: 20.21789551 | C162: 0.04845091525
A163: 155 | B163: 20.59936523 | C163: 0.04776942916
A164: 156 | B164: 20.98083496 | C164: 0.04037010937
A165: 157 | B165: 21.36230469 | C165: 0.02753495947
A166: 158 | B166: 21.74377441 | C166: 0.01126110383
A167: 159 | B167: 22.12524414 | C167: -0.006042602282
A168: 160 | B168: 22.50671387 | C168: -0.021905763
A169: 161 | B169: =Hleft+(Hright-Hleft)/200*(A169-1) -> 22.88818359 | C169: =SIN(x)/x -> -0.03414339998
A170: 162 | B170: 23.26965332 | C170: -0.04115171223
A171: 163 | B171: 23.65112305 | C171: -0.04211327563
A172: 164 | B172: 24.03259277 | C172: -0.03708608128
A173: 165 | B173: 24.4140625 | C173: -0.02696768542
A174: 166 | B174: 24.79553223 | C174: -0.01334331393
A175: 167 | B175: 25.17700195 | C175: 0.001757408396
A176: 168 | B176: 25.55847168 | C176: 0.01615848342
A177: 169 | B177: 25.93994141 | C177: 0.0278471664
A178: 170 | B178: 26.32141113 | C178: 0.03525167394
A179: 171 | B179: 26.70288086 | C179: 0.03744913478
A180: 172 | B180: 27.08435059 | C180: 0.03427672213
A181: 173 | B181: 27.46582031 | C181: 0.02633314698
A182: 174 | B182: 27.84729004 | C182: 0.01487333019
A183: 175 | B183: 28.22875977 | C183: 0.001613898112
A184: 176 | B184: 28.61022949 | C184: -0.01152087442
A185: 177 | B185: 28.99169922 | C185: -0.02267551224
A186: 178 | B186: 29.37316895 | C186: -0.03032285506
A187: 179 | B187: 29.75463867 | C187: -0.03347069494
A188: 180 | B188: 30.1361084 | C188: -0.03178790337
A189: 181 | B189: 30.51757813 | C189: -0.0256343801
A190: 182 | B190: 30.89904785 | C190: -0.01599301657
A191: 183 | B191: 31.28051758 | C191: -0.004315642675
A192: 184 | B192: 31.6619873 | C192: 0.007693303556
A193: 185 | B193: 32.04345703 | C193: 0.01832347662
A194: 186 | B194: 32.42492676 | C194: 0.02610028035
A195: 187 | B195: 32.80639648 | C195: 0.02998760347
A196: 188 | B196: 33.18786621 | C196: 0.02952400684
A197: 189 | B197: 33.56933594 | C197: 0.0248747181
A198: 190 | B198: 33.95080566 | C198: 0.01679402323
A199: 191 | B199: 34.33227539 | C199: 0.006505365772
A200: 192 | B200: 34.71374512 | C200: -0.004482121222
A201: 193 | B201: =Hleft+(Hright-Hleft)/200*(A201-1) -> 35.09521484 | C201: =SIN(x)/x -> -0.01459339039
A202: 194 | B202: 35.47668457 | C202: -0.02241178181
... 6 more rows
